Cogmind - Beta 14 @@@ ROGUE MODE // 2025.01.17 @ 22:21:44 Player: star Result: Destroyed by P-70 Sage with Tesla Rifle Performance ------------- Evolutions (5) 2500 Regions Visited (7) 1400 Robots Destroyed (94) 470 Value Destroyed (4670) 4670 Prototype IDs (2) 40 Alien Tech Used (0) 0 Bonus (1765) 1765 TOTAL SCORE: 10845 Bonus ------- High Alert Combat Kills 1059 Follower Combat Kills 506 Entered Garrisons 200 Cogmind --------- Core Integrity 0/1000 Matter 274/300 Energy 100/100 System Corruption 5% Temperature Cool (0) Movement Core (50) Location -5/Factory Parts ------- > --- POWER (2) -------- (None) > --- PROPULSION (5) --- (None) > --- UTILITY (4) ------ (None) > --- WEAPON (6) ------- (None) > --- INVENTORY (5) ---- Armored Heavy Treads Advanced Heat Sink Triangulator Improved Launcher Guidance Computer Peak State ------------ > --- POWER ------------ Reinforced Deuterium Engine Reinforced Antimatter Reactor > --- PROPULSION ------- Armored Treads Armored Heavy Treads Armored Heavy Treads > --- UTILITY ---------- Advanced Heat Sink High-capacity Storage Unit Improved Targeting Computer Medium Insulated Plating > --- WEAPON ----------- Improved Arc Projector Gauss Rifle Flak Gun Heavy Machine Gun Heavy Machine Gun Makeshift Sword > --- INVENTORY -------- Light Antimatter Reactor Reinforced Antimatter Reactor Improved Medium Treads Improved Medium Treads Armored Heavy Treads Advanced Heat Sink Advanced Heat Sink Compact Matter Pod Triangulator Improved Launcher Guidance Computer Improved Kinecellerator Quantum Capacitor Medium Reflective Plating Nova Cannon Nova Cannon Proton Missile Launcher Grenade Launcher [Rating: 96] Favorites ----------- Power Light Ion Engine Engine Light Ion Engine Power Core Light Nuclear Core Reactor Reinforced Antimatter Reactor Propulsion Spiked Treads Treads Spiked Treads Wheel Compact Wheel Flight Unit Improved Flight Unit Utility High-capacity Storage Unit Device Advanced Heat Sink Storage High-capacity Storage Unit Processor Targeting Computer Protection Medium Insulated Plating Weapon Heavy Machine Gun Energy Gun EM Pulse Gun Energy Cannon Light EM Pulse Cannon Ballistic Gun Heavy Machine Gun Launcher Grenade Launcher Special Weapon CPS Tube Slashing Weapon Makeshift Sword Build | -11 -10 -10 -9 -9 -6 -6 -5 ------- Run | Yrd Mat Sub Rec Scr Fac Gar Fac Slots Evolved 10 | . . . . . 8 . 2 Power 1 | . . . . . . . 1 Propulsion 3 | . . . . . 3 . . Utility 2 | . . . . . 1 . 1 Weapon 4 | . . . . . 4 . . Parts Attached 97 | 7 11 11 3 3 32 18 12 Power 10 | 2 1 1 . 1 3 1 1 Engine 6 | 2 1 1 . . 1 . 1 Core 3 | . . . . 1 2 . . Reactor 1 | . . . . . . 1 . Propulsion 23 | 2 5 2 . 1 6 7 . Treads 19 | . 3 2 . 1 6 7 . Leg . | . . . . . . . . Wheel 3 | 2 1 . . . . . . Hover . | . . . . . . . . Flight 1 | . 1 . . . . . . Utility 12 | 1 3 . . 1 4 . 3 Device 3 | . . . . . 2 . 1 Storage 3 | 1 2 . . . . . . Processor 4 | . 1 . . 1 2 . . Hackware . | . . . . . . . . Protection 2 | . . . . . . . 2 Artifact . | . . . . . . . . Weapon 52 | 2 2 8 3 . 19 10 8 Energy Gun 8 | . . 2 . . 4 . 2 Energy Cannon 9 | . 2 3 2 . . . 2 Ballistic Gun 21 | 2 . 2 . . 11 6 . Ballistic Cannon . | . . . . . . . . Launcher 8 | . . 1 . . 3 1 3 Special Weapon 3 | . . . . . 1 2 . Impact Weapon . | . . . . . . . . Slashing Weapon 3 | . . . 1 . . 1 1 Piercing Weapon . | . . . . . . . . Special Melee Weapon . | . . . . . . . . Unidentified Prototypes 2 | . 1 . . . 1 . . Corrupted Parts 2 | . . 1 . . 1 . . System Corruption 6 | . . 5 . . 1 . . Parts Lost 30 | . 2 2 . . 7 5 14 Power 3 | . 1 1 . . . . 1 Propulsion 7 | . 1 . . . 3 1 2 Utility 2 | . . . . . . . 2 Weapon 18 | . . 1 . . 4 4 9 Highest Loss Streak 5 | . 1 1 . . 3 2 5 To Critical Strikes . | . . . . . . . . Average Slot Usage (%) 91 | . 94 99 98 85 96 85 73 Engine 9 | . 14 13 14 10 3 . 4 Reactor 1 | . . . . . . 5 4 Treads 26 | . 26 28 28 28 31 21 13 Device 1 | . . . . . 1 6 5 Storage 10 | . 14 14 14 14 6 6 4 Processor 10 | . 9 14 14 14 9 6 4 Energy Gun 4 | . . 10 . . 12 . 2 Energy Cannon 6 | . 7 15 15 . . . 2 Ballistic Gun 13 | . 20 . . . 23 36 19 Slashing Weapon 3 | . . . 10 14 2 . . Peak Build Rating 96 | 6 12 14 16 19 56 87 96 Average Rating 33 | 4 9 11 15 15 50 82 83 On Entrance 25 | . 6 12 11 14 19 55 87 Naked Turns 42 | . . . . . . . 42 Heaviest Build 115 | 14 51 53 53 47 84 92 115 Greatest Support 140 | 32 46 46 40 48 117 140 140 Greatest Overweight (x) 2 | 2 1 1 1 1 1 1 1 Average Overweight (x) . | . . 1 1 . . . . Largest Inventory Capacity 20 | 8 20 20 20 20 20 20 20 Average Capacity 18 | 6 13 20 20 20 20 20 19 Most Carried 20 | 4 9 15 16 20 20 20 20 Average Carried 14 | 2 7 11 15 18 17 18 16 Final Capacity 20 | 8 20 20 20 20 20 20 5 Final Carried 20 | 4 9 15 16 20 17 19 5 Class Distribution -------------------- 63% | Mutant 24% | Scavenger-Executioner 8% | Executioner 3% | Scavenger-Gunner Dominant Class ---------------- Mutant | -10/Materials Mutant | -10/Subcaves Mutant | -9/Recycling Mutant | -9/Scraptown Executioner | -6/Factory Scavenger-Executioner | -6/Garrison Scavenger-Executioner | -5/Factory Resources | -11 -10 -10 -9 -9 -6 -6 -5 ----------- Run | Yrd Mat Sub Rec Scr Fac Gar Fac Matter Collected 3421 | 226 268 175 60 98 886 1168 540 Remotely . | . . . . . . . . Salvage Created 4273 | . 451 232 60 . 1564 777 1189 Parts 246 | . 27 16 4 . 88 48 63 Haulers Intercepted 3 | . 1 . . . 2 . . Recyclers Shooed 4 | . . . . . 3 . 1 Parts Field Recycled . | . . . . . . . . Retrieved Matter . | . . . . . . . . Parts Self-Destructed 11 | . . 11 . . . . . Prevented . | . . . . . . . . Kills | -11 -10 -10 -9 -9 -6 -6 -5 ------- Run | Yrd Mat Sub Rec Scr Fac Gar Fac Combat Hostiles Destroyed 76 | . 12 9 1 . 24 12 18 Melee 1 | . 1 . . . . . . Guns 50 | . 11 4 . . 15 10 10 Cannons 6 | . . 1 1 . . . 4 AOE 16 | . . 4 . . 7 2 3 Classes Destroyed 14 | . 3 1 1 . 6 1 2 Worker 8 | . . . . . 5 . 3 Builder 4 | . . . . . 2 . 2 Hauler 3 | . 1 . . . 2 . . Recycler 2 | . . . . . 1 . 1 Operator 1 | . . . . . . . 1 Swarmer 16 | . 3 4 . . 7 . 2 Grunt 33 | . 9 . . . 8 7 9 Duelist 1 | . . . . . . . 1 Sentry 6 | . . . 1 . 2 2 1 Hunter 4 | . . . . . 1 1 2 Programmer 8 | . . . . . 5 . 3 Heavy 1 | . . . . . 1 . . Behemoth 2 | . . . . . . 2 . Subdweller 5 | . . 5 . . . . . Best Kill Streak 13 | . 3 4 1 . 13 3 7 Combat Bots Only 6 | . 3 4 1 . 6 3 4 Max Kills in Single Turn 3 | . 2 1 1 . 3 2 2 Gunslinging 1 | . 1 . . . . . . Exploded 2 | . . 1 . . 2 2 2 Melee 1 | . 1 . . . . . . Uniques/NPCs Destroyed . | . . . . . . . . Combat | -11 -10 -10 -9 -9 -6 -6 -5 -------- Run | Yrd Mat Sub Rec Scr Fac Gar Fac Hostile Shots Fired 567 | . 51 47 4 . 140 116 209 Missed 154 | . 9 17 1 . 41 36 50 Damage Taken 7716 | . 572 507 47 . 1658 1703 3229 Core 1473 | . 86 122 . . 191 63 1011 Absorbed by Shields . | . . . . . . . . Reduced by Siege Mode 103 | . . . . . . 47 56 Ignored by Resistances 37 | . . . . . . . 37 Core Remaining (%) 62 | 100 . . . 16 . 70 . Volleys Fired 227 | . 32 40 3 . 59 35 58 Largest 6 | . 2 2 2 . 6 6 6 Hottest 394 | . 112 112 112 . 215 203 394 Shots Fired 629 | . 64 56 7 . 201 165 136 Gun 535 | . 62 27 . . 186 160 100 Cannon 52 | . 2 18 7 . . . 25 Launcher 39 | . . 11 . . 14 3 11 Special 3 | . . . . . 1 2 . Kinetic 455 | . 62 11 . . 146 159 77 Thermal 32 | . . 4 . . . . 28 Explosive 21 | . . 11 . . . . 10 Electromagnetic 118 | . 2 30 7 . 54 4 21 Robot Hit Streak 23 | . 15 10 15 . 23 17 11 Robot Miss Streak 5 | . 1 4 . . 5 5 5 Penetration Max 1 | . . . . . . . 1 Secondary Targets 8 | . 2 . . . 1 1 4 Max Gunslinging Chain 1 | . 1 . . . 1 1 1 Capacitor 14 | . . . . . . . 14 Shots Hit Robots 392 | . 51 24 5 . 134 85 93 Core Hits 256 | . 25 16 2 . 67 46 100 Critical Kills 3 | . . . . . 2 . 1 Critical Parts Destroyed 6 | . 1 . . . 4 . 1 Critical Strikes 11 | . 1 2 . . 6 . 2 Meltdown 1 | . . . . . . . 1 Destroy 8 | . 1 . . . 6 . 1 Corrupt 2 | . . 2 . . . . . Melee Attacks 14 | . . . 7 . . 4 3 Impact . | . . . . . . . . Slashing 14 | . . . 7 . . 4 3 Piercing . | . . . . . . . . Sneak Attacks . | . . . . . . . . Combat Hostiles . | . . . . . . . . Follow-up Attacks . | . . . . . . . . Damage Inflicted 10631 | . 708 634 92 . 3575 1997 3625 Guns 6723 | . 689 158 . . 2639 1739 1498 Cannons 959 | . . 152 92 . . . 715 Explosions 2928 | . . 324 . . 936 258 1410 Melee . | . . . . . . . . Ramming 21 | . 19 . . . . . 2 Kinetic 6001 | . 689 59 . . 2310 1733 1210 Thermal 1014 | . . 85 . . 104 . 825 Explosive 1536 | . . 239 . . 183 . 1114 Electromagnetic 2059 | . . 251 92 . 978 264 474 Impact . | . . . . . . . . Slashing . | . . . . . . . . Piercing . | . . . . . . . . Highest Corruption 5 | . . 5 5 . 3 3 5 Average Corruption 3 | . . 5 5 . 1 3 1 Corruption Purged . | . . . . . . . . Corruption Blocked . | . . . . . . . . Effects 64 | . . 19 10 . 7 28 . Message Errors 19 | . . 7 3 . 1 8 . Matter Fused 12 | . . 3 2 . 3 4 . Heat Flow Errors 6 | . . 1 1 . 1 3 . Energy Discharges 9 | . . 5 1 . . 3 . Data Loss (minor) 8 | . . 1 2 . 1 4 . Data Loss (major) 2 | . . . . . . 2 . Misfires 3 | . . 1 1 . . 1 . Alerts 3 | . . 1 . . . 2 . Weapon Failures 2 | . . . . . 1 1 . Overload Shots . | . . . . . . . . Overflow Damage 77 | . . . . . . . 77 Projectiles 20 | . . . . . . . 20 Explosions 57 | . . . . . . . 57 Melee . | . . . . . . . . Knockbacks . | . . . . . . . . Impact . | . . . . . . . . Kinetic . | . . . . . . . . Secondary . | . . . . . . . . Self-Inflicted Damage 300 | . . 102 . . 129 35 34 Shots 9 | . . 3 . . 3 1 2 Rammed 16 | . 14 . . . . . 2 Targets Rammed 17 | . 15 . . . . . 2 Kicked . | . . . . . . . . Crushed 1 | . 1 . . . . . . Highest Temperature 670 | . 51 66 112 . 408 252 670 Average Temperature 143 | . 8 19 53 . 122 48 241 Received Heat Transfer 1929 | . 270 57 9 . 423 507 663 Effects 44 | . . . . . 11 . 33 Shutdowns 9 | . . . . . 1 . 8 Energy Bleed 5 | . . . . . 2 . 3 Interference 11 | . . . . . 6 . 5 Matter Decay 5 | . . . . . 1 . 4 Short Circuit 4 | . . . . . 1 . 3 Damage (major) 7 | . . . . . . . 7 Damage (core) 3 | . . . . . . . 3 Siege Activations 2 | . . . . . . 1 1 Total Turns 36 | . . . . . . 24 12 Longest Duration 24 | . . . . . . 24 12 Robots Corrupted 3 | . . . . . 3 . . Combat Hostiles 2 | . . . . . 2 . . Parts Fried 8 | . . 2 . . 5 1 . Impact Corruptions . | . . . . . . . . Robots Melted 1 | . . . . . . . 1 Combat Hostiles 1 | . . . . . . . 1 Parts Melted 3 | . . . . . . . 3 Heat Transferred 853 | . . 50 . . 50 . 753 Parts Sabotaged 1 | . . . . . . . 1 Parts Stolen . | . . . . . . . . Parts Stripped . | . . . . . . . . Power Chain Reactions 6 | . . 2 . . 3 . 1 Alert | -11 -10 -10 -9 -9 -6 -6 -5 ------- Run | Yrd Mat Sub Rec Scr Fac Gar Fac Peak Influence 1604 | . 180 . 26 . 526 1604 1231 Initial 842 | . . . . . . 368 842 Average 412 | . 38 . 12 . 239 902 975 Maximum Alert Level 5 | . . . . . 2 5 4 Low Security (%) 50 | 100 100 . 100 . 46 . . Level 1 4 | . . . . . 9 8 . Level 2 20 | . . . . . 43 41 . Level 3 12 | . . . . . . 11 76 Level 4 10 | . . . . . . 28 23 Level 5 2 | . . . . . . 10 . High Security . | . . . . . . . . Max Security . | . . . . . . . . Squads Dispatched 15 | . 1 . . . 8 . 6 Investigation 3 | . 1 . . . 2 . . Extermination 4 | . . . . . 3 . 1 Reinforcement 5 | . . . . . 2 . 3 Assault 2 | . . . . . . . 2 Garrison 1 | . . . . . 1 . . Intercept . | . . . . . . . . Searches Triggered . | . . . . . . . . Construction Impeded 2 | . . . . . . . 2 Haulers Reinforced 2 | . . . . . 1 . 1 Active Scanning Responses . | . . . . . . . . Cargo Convoy Interrupts 1 | . . . . . . . 1 Stealth | -11 -10 -10 -9 -9 -6 -6 -5 --------- Run | Yrd Mat Sub Rec Scr Fac Gar Fac Distress Signals 5 | . 3 . . . 1 . 1 Communications Jammed . | . . . . . . . . Distress Signals . | . . . . . . . . Times Spotted 146 | . 20 16 1 . 30 24 55 Peak Tracking Total 21 | . 5 4 1 . 4 5 21 Tactical Retreats 10 | . . 4 . . 2 1 3 Traps | -11 -10 -10 -9 -9 -6 -6 -5 ------- Run | Yrd Mat Sub Rec Scr Fac Gar Fac Traps Triggered 5 | . 2 . . . 2 1 . Indirectly 1 | . . . . . 1 . . Trap Hack Attempts . | . . . . . . . . Triggered . | . . . . . . . . Disarmed . | . . . . . . . . Reprogrammed . | . . . . . . . . Reused . | . . . . . . . . Traps Extracted . | . . . . . . . . Installed . | . . . . . . . . Triggered 2 | . . 2 . . . . . Machines | -11 -10 -10 -9 -9 -6 -6 -5 ---------- Run | Yrd Mat Sub Rec Scr Fac Gar Fac Machines Disabled 17 | . . . . . 5 9 3 Max in Single Turn 2 | . . . . . 1 2 2 Garrison Relay 3 | . . . . . . 3 . Phase Generator 1 | . . . . . . 1 . Machines Repaired . | . . . . . . . . Machines Dismantled . | . . . . . . . . Machines Sabotaged . | . . . . . . . . Overloaded Fab Kills . | . . . . . . . . Hacking | -11 -10 -10 -9 -9 -6 -6 -5 --------- Run | Yrd Mat Sub Rec Scr Fac Gar Fac Machines Accessed 4 | . . . . . 2 2 . Terminals 2 | . . . . . . 2 . Fabricators 1 | . . . . . 1 . . Repair Stations . | . . . . . . . . Recycling Units . | . . . . . . . . Scanalyzers . | . . . . . . . . Garrison Access 1 | . . . . . 1 . . Total Hacks 6 | . . . . . 2 4 . Successful 2 | . . . . . 1 1 . Failed 4 | . . . . . 1 3 . Catastrophic . | . . . . . . . . Database Lockouts . | . . . . . . . . Manual . | . . . . . . . . Terminals 4 | . . . . . . 4 . Fabricators 1 | . . . . . 1 . . Repair Stations . | . . . . . . . . Recycling Units . | . . . . . . . . Scanalyzers . | . . . . . . . . Garrison Access 1 | . . . . . 1 . . Terminal Hacks 1 | . . . . . . 1 . Emergency Access Points 1 | . . . . . . 1 . Fabricator Hacks . | . . . . . . . . Repair Station Hacks . | . . . . . . . . Recycling Unit Hacks . | . . . . . . . . Scanalyzer . | . . . . . . . . Garrison Access Hacks 1 | . . . . . 1 . . Unlock Access 1 | . . . . . 1 . . Unauthorized Hacks . | . . . . . . . . Terminals . | . . . . . . . . Fabricators . | . . . . . . . . Repair Stations . | . . . . . . . . Recycling Units . | . . . . . . . . Scanalyzers . | . . . . . . . . Garrison Access . | . . . . . . . . Data Cores Recovered 1 | . . . . . . . 1 Used . | . . . . . . . . Hacking Detections 2 | . . . . . 1 1 . Full Trace Events 1 | . . . . . . 1 . Feedback Events . | . . . . . . . . Feedback Blocked . | . . . . . . . . Robot Schematics Acquired . | . . . . . . . . Robots Built . | . . . . . . . . Authchips . | . . . . . . . . Time . | . . . . . . . . Total Robot Build Rating . | . . . . . . . . Part Schematics Acquired . | . . . . . . . . Parts Built . | . . . . . . . . Authchips . | . . . . . . . . Time . | . . . . . . . . Total Part Build Rating . | . . . . . . . . Parts Repaired . | . . . . . . . . Time . | . . . . . . . . Parts Recycled . | . . . . . . . . Recycled Matter . | . . . . . . . . Retrieved Matter . | . . . . . . . . Retrieved Components . | . . . . . . . . Parts Scanalyzed . | . . . . . . . . Part Schematics Acquired . | . . . . . . . . Parts Damaged . | . . . . . . . . Bothacking | -11 -10 -10 -9 -9 -6 -6 -5 ------------ Run | Yrd Mat Sub Rec Scr Fac Gar Fac Used RIF Installer . | . . . . . . . . Robots Hacked . | . . . . . . . . Non-combat . | . . . . . . . . Combat . | . . . . . . . . Robot Hacks Applied . | . . . . . . . . Relay Couplers Released 12 | . . . . . . 12 . Machine Destruction 12 | . . . . . . 12 . Fabnet Peak Effective % . | . . . . . . . . Robots Rewired 2 | . . . . . . 2 . Allies Hacked . | . . . . . . . . Hacks Repelled . | . . . . . . . . Allies | -11 -10 -10 -9 -9 -6 -6 -5 -------- Run | Yrd Mat Sub Rec Scr Fac Gar Fac Total Allies 2 | . . . . . . 2 . Largest Group 2 | . . . . . . 2 . Highest-Rated Group 233 | . . . . . . 233 . Highest-Rated Ally 148 | . . . . . . 148 . Total Orders . | . . . . . . . . Ally Attacks 49 | . . . . . . 49 . Total Damage 1766 | . . . . . . 1766 . Kills 13 | . . . . . . 13 . Allies Corrupted . | . . . . . . . . Allies Melted . | . . . . . . . . Intel | -11 -10 -10 -9 -9 -6 -6 -5 ------- Run | Yrd Mat Sub Rec Scr Fac Gar Fac Robot Analysis Total . | . . . . . . . . Derelict Logs Recovered 3 | . . 1 . 2 . . . Drone Launches . | . . . . . . . . Drone Recoveries . | . . . . . . . . Exploration | -11 -10 -10 -9 -9 -6 -6 -5 ------------- Run | Yrd Mat Sub Rec Scr Fac Gar Fac Turns Passed 9496 | 61 1595 2239 629 1468 1345 1469 690 Spaces Moved 3915 | 47 541 813 227 656 619 674 338 Core 83 | 7 . . . . . . 76 Treads 3710 | . 459 813 227 656 619 674 262 Legs . | . . . . . . . . Wheels 122 | 40 82 . . . . . . Hover . | . . . . . . . . Flight . | . . . . . . . . Fastest Speed 50 | 50 100 240 260 160 160 165 50 Average Speed 197 | 98 160 258 260 222 166 169 147 Slowest Speed 260 | 150 240 260 260 260 245 250 250 Overloaded Moves . | . . . . . . . . Propulsion Burnouts . | . . . . . . . . Robots Hopped . | . . . . . . . . Cave-ins Triggered . | . . . . . . . . Exploration Rate (%) 42 | 4 87 37 61 46 23 68 11 Regions Visited 7 Branch Regions 3 Pre-discovered Areas . | . . . . . . . . Known Exits Taken 1 | . . . . . 1 . . Unknown Exits Taken 5 | 1 1 1 1 1 . . . Scrap Searched 5 | . . 2 . 3 . . . Spaces Dug 12 | . . . 7 . . 2 3 Terrain Destroyed 337 | . . 73 7 . 67 150 40 Melee 12 | . . . 7 . . 2 3 Projectile 7 | . . . . . . 1 6 AOE 318 | . . 73 . . 67 147 31 Terrain Rammed . | . . . . . . . . Walls Destroyed . | . . . . . . . . Machines Disabled . | . . . . . . . . Actions | -11 -10 -10 -9 -9 -6 -6 -5 --------- Run | Yrd Mat Sub Rec Scr Fac Gar Fac Total 5235 | 58 1194 892 253 664 816 919 439 Wait 840 | 2 586 24 12 1 81 112 22 Move 3907 | 46 540 812 226 655 618 672 338 Hop . | . . . . . . . . Pick Up 54 | 3 8 4 1 4 15 16 3 Fast Attach 15 | 6 . 1 . . 3 3 2 Attach 33 | . 3 1 1 . 12 8 8 Detach 7 | . . 1 1 . . 4 1 Swap 49 | 1 8 9 2 3 17 7 2 Drop 28 | . 2 . . 1 11 14 . Fire 227 | . 32 40 3 . 59 35 58 Melee 14 | . . . 7 . . 4 3 Ram 1 | . . . . . . . 1 Kick . | . . . . . . . . Crush 16 | . 15 . . . . . 1 Escape Stasis . | . . . . . . . . Rewire 44 | . . . . . . 44 . Trap . | . . . . . . . . Miscellaneous . | . . . . . . . . Route ------- -11/Scrapyard -10/Materials (discovered 5 exits: [*Mat x2] / [*Min x2] / [*Sub]) -10/Subcaves (discovered 2 exits: [*Mat] / [*Rec]) -9/Recycling (discovered 2 exits: [*Fac] / [*Scr]) -9/Scraptown -6/Factory (discovered 2 exits: *Low / Gar) -6/Garrison (discovered 2 exits: [*Fac x2]) -5/Factory History --------- Turn | Location | Event 15 | -11/Scrapyard | Discovered new exit (range 16) 62 | -11/Scrapyard | Entered Materials 308 | -10/Materials | Build established: Mutant 370 | -10/Materials | Discovered new exit (range 12) 426 | -10/Materials | Discovered new exit (range 14) 776 | -10/Materials | Discovered new exit (range 16) 927 | -10/Materials | Discovered new exit (range 16) 1634 | -10/Materials | Discovered new exit (range 5) 1657 | -10/Materials | Entered Subcaves 1710 | -10/Subcaves | Shifting Twisted Machinery released Spk. Treads 1847 | -10/Subcaves | Discovered new exit (range 14) 2062 | -10/Subcaves | Core integrity fell below 50% 2422 | -10/Subcaves | Discovered new exit (range 10) 3241 | -10/Subcaves | Learned Materials trap positions 3576 | -10/Subcaves | A swath of the cavern ceiling suddenly collapsed 3832 | -10/Subcaves | Ambushed by Subdweller buried in earth 3838 | -10/Subcaves | Ambushed by Subdweller buried in earth 3843 | -10/Subcaves | Core integrity fell below 20% 3896 | -10/Subcaves | Entered Recycling 4295 | -9/Recycling | Discovered new exit (range 16) 4459 | -9/Recycling | Scanned before Scraplab entrance 4499 | -9/Recycling | Entered Scraplab 4519 | -9/Recycling | Discovered new exit (range 3) 4525 | -9/Recycling | Entered Scraptown 4525 | -9/Scraptown | System corruption cleaned by C-Scrubber 5182 | -9/Scraptown | Scanned Subdweller tech in exchange for log data 5190 | -9/Scraptown | Learned location of 2 exits from Proximity Caves 5218 | -9/Scraptown | Discovered new exit (range 13) 5886 | -9/Scraptown | Visited UFD Registry 5993 | -9/Scraptown | Entered Factory 5993 | -6/Factory | Evolved 8 slots: Propulsion x3, Utility x1, Weapon x4 6348 | -6/Factory | Build established: Executioner 6828 | -6/Factory | Discovered new exit (range 15) 6880 | -6/Factory | Build established: Scavenger-Executioner 6897 | -6/Factory | Identified exit to Lower Caves 7220 | -6/Factory | Lost 3 parts (1n2w) 7312 | -6/Factory | Garrison activated, responded to threat 7330 | -6/Factory | Identified exit to Garrison 7338 | -6/Factory | Entered Garrison 7357 | -6/Garrison | Spotted B-75 Beast 7358 | -6/Garrison | Spotted B-90 Cyclops 7443 | -6/Garrison | Destroyed B-90 Cyclops 7503 | -6/Garrison | Found Quantum Capacitor 7540 | -6/Garrison | Destroyed B-75 Beast 7621 | -6/Garrison | Rewired B-90 Cyclops 7682 | -6/Garrison | Rewired B-75 Beast 7764 | -6/Garrison | Triggered checkpoint 7813 | -6/Garrison | Garrison Relay disabled 8026 | -6/Garrison | Triggered checkpoint 8076 | -6/Garrison | Triggered checkpoint 8080 | -6/Garrison | Triggered checkpoint 8101 | -6/Garrison | Triggered checkpoint 8235 | -6/Garrison | Phase Generator disabled 8258 | -6/Garrison | Discovered new exit (range 9) 8278 | -6/Garrison | Triggered checkpoint 8393 | -6/Garrison | Garrison Relay disabled 8590 | -6/Garrison | Spotted B-75 Beast 8595 | -6/Garrison | Garrison Relay disabled 8627 | -6/Garrison | Discovered new exit (range 14) 8660 | -6/Garrison | Attempted to access garrison exit controls, blocked by remote lockdown 8807 | -6/Garrison | Entered Factory 8807 | -5/Factory | Evolved 2 slots: Power x1, Utility x1 9107 | -5/Factory | First assault squad dispatched 9255 | -5/Factory | Lost 3 parts (3w) 9391 | -5/Factory | Lost 5 parts (2n1u2w) 9443 | -5/Factory | Cargo convoy interrupted 9455 | -5/Factory | Released all parts (7) 9456 | -5/Factory | Core integrity fell below 50% 9459 | -5/Factory | Core integrity fell below 20% 9478 | -5/Factory | Lost 4 parts (1p1u2w) 9484 | -5/Factory | Spotted B-75 Beast 9497 | -5/Factory | Destroyed by P-70 Sage with Tesla Rifle Last Messages --------------- 09451_ P-70 Sage resets R-10 Processor, system corruption cleaned. 09452_ Overheating: Energy bleed (-58). 09452_ Destroyed Imp. Hover Unit. 09454_ U-05 Engineer lays Concrete. 09455_ Released Broken Nova Cannon. 09455_ Released Nova Cannon. 09455_ Released Arm. Heavy Treads. 09455_ Released Hcp. Storage Unit. 09455_ Released Rnf. Antimatter Reactor. 09455_ Released Broken Quantum Capacitor. 09455_ Released Grenade Launcher. 09455_ R-10 Processor collects Corrupted Unknown Reactor. 09455_ Acquired 7 matter. 09456_ Overheating: Core damaged (-180). 09456_ U-05 Engineer lays Concrete. 09457_ Overheating: Energy bleed (-10). 09457_ W-25 Informer sends out distress signal. 09459_ Overheating: Core damaged (-110). 09460_ K-01 Serf collects debris. 09491_ Slammed into U-05 Engineer. Map ----- +----------------------------------------------------+ | ?????????????????????????????????????????????????? | | ?????????????????????????????????????????????????? | | ?????????????????????????????????????????????????? | | ?????????????????????????????????????????????????? | | ?????????????????????????????????????????????????? | | ?????????????????????????????????????????????????? | | ?????????????????????????????????????????????????? | | ?????????????????????????????????????????????????? | | ????????########### ????????????????????????????? | | ???????? ????????????????????????????? | | ???????? ?? ??????????????????????? | | ???????? "" ??????????????????????? | | ???????? ! "" ?????????????????????? | | ????????# """g "?????????????????????? | | ????????# "?" ""????????????????????? | | ????????# ???"g ""????????????????????? | | ????????# !! ??? ?????????????????? | | ????????# ?? ???? ""????????????????? | | ????????" ???? ???? """ ?????????????? | | ????????# #?####"#+???# """ ?????????????? | | ????????# #?# ????# "" ???????????????? | | ????????# #?# ????# " """???????????????? | | ????????# #?# ?????# "F """ ? ????????????? | | ####????# #?? ?????# u "" """ #???????????? | | #????# #####"####### #???????????? | | "" #????# pp @ #???????????? | | T" #????# ####### ######+#???????????????? | | "" #????# #?????# ##+###+##??????????????????????? | | ###### #?????# ## ? ???????????????????????? | | % *# # #?????# ## ? ???????????????????????? | | +### ==# #?????# ## #??????????????????????? | | # !==# #?????# ## """ #??????????????????????? | | =#[===# #?????# ## """ #??????????????????????? | | % *+% # #?????# ## """ #??????????????????????? | | =# *# #?????# #########??????????????????????? | | *# # #?????? ???????????????????????????????? | | ### # #?????? ???????????????????????????????? | | ^### # #?????? ???????????????????????????????? | | ######## #?????? ???????????????????????????????? | | ##?????# #?????? ???????????????????????????????? | | #??????# #?????? ???????????????????????????????? | | ######## #?????? ???????????????????????????????? | | #???????#??????????????????????????????? | | ##########?????? #??????????????????????????????? | | ##?????????????? #??????????????????????????????? | | ##??????????####/####???????????????????????????? | | +#########??? ???????????????????????????? | | ##?# ???????????????????????????? | | "#?#! = """"??????????????????????????? | | "#?# """"??????????????????????????? | +----------------------------------------------------+ Best States ------------- Heat Dissipation 59 Energy Generation 32 Energy Capacity 515 Matter Stores 300 Matter Capacity 300 Sight Range 16 Terrain Scan Density 10 Armor Coverage 225 Resistance: TH 15 Resistance: EM 20 Evasion (%) 50 Targeting Accuracy 6 Target Analysis 5 Recoil Reduction 5 Item Schematics ----------------- None Robot Schematics ------------------ None Fabricated ------------ Nothing Alien Tech Used ----------------- None Achievements -------------- None Challenges ------------ None Game ------ Seed TiamatTeslaSpiker Manual? 0 Play Time 00:53:43 Cumulative 141.1 hours Start 2025.01.17 @ 20:05:30 End 2025.01.17 @ 22:21:44 Sessions 1 Manual Loads 0 Difficulty Rogue Special Mode None Game No. 241 Rogue 241 Adventurer 0 Explorer 0 Win Type - Total 1 Types 1/0/0/0/0/0/0/0/0 Lore% 52 Gallery% 62 Achievement% 48 Wizard Run 0 Options --------- Layout 0 ASCII 0 Keyboard 1 Movement Numpad Keybinds 0 Fullscreen 2 Font 18/SmallcapsGlow Map View 76x50 Zoom Use 0% Tactical HUD 1 Map Filters NONE Filters NONE Steam 1 RUN: 377ed9d5-e122-4bd4-bb45-7829a57a8b67